bitfinex/quotes_ETHUSD_20241001
["timestamp","ask_amount","ask_price","bid_price","bid_amount"]
[1727806064677,0.8195,2514.2,2514.0,3.9777]
[1727806064883,0.8195,2514.2,2513.9,3.97787]
[1727806065082,0.8195,2514.2,2513.9,4.375577]
[1727806065286,0.8195,2514.2,2514.1,3.97756]
[1727806066113,0.8195,2514.2,2514.0,3.97771]
[1727806066320,0.8195,2514.2,2514.0,3.97772]
[1727806066501,20.2855,2514.5,2514.2,3.97726]
[1727806067414,20.2855,2514.5,2514.1,3.97747]
[1727806067569,20.2855,2514.5,2514.2,3.97732]
[1727806067788,20.2855,2514.5,2514.3,3.97716]
[1727806068274,20.2855,2514.5,2514.2,3.97732]
[1727806069483,20.2855,2514.5,2514.1,4.4150657]
[1727806069632,20.2855,2514.5,2514.1,3.97754]
[1727806070030,0.7555,2514.5,2514.1,3.97749]
[1727806071141,0.7555,2514.5,2513.6,0.6873]
[1727806071142,3.97725,2514.3,2513.8,3.97791]
[1727806071350,3.97725,2514.3,2513.9,3.97783]
[1727806071560,4.73255,2514.5,2514.0,3.9777]
[1727806071833,3.97711,2514.4,2514.0,3.9777]
[1727806072171,3.97749,2514.2,2513.8,3.97791]
[1727806072528,3.97747,2514.2,2513.8,3.97791]
[1727806072961,0.7569,2514.1,2513.7,3.97819]
[1727806073167,4.73462,2514.1,2513.6,3.97822]
[1727806073373,0.7569,2514.1,2513.3,3.9788]
[1727806073692,24.26447,2514.1,2513.7,3.97812]
[1727806073967,24.26447,2514.1,2513.7,7.9562]
[1727806073968,0.04695038,2514.0,2513.7,7.9562]
[1727806074180,0.04695038,2514.0,2513.8,3.97799]
[1727806074472,0.04695038,2514.0,2513.9,4.61448943]
[1727806075228,20.2852,2514.4,2513.9,4.61448943]
[1727806075461,20.2852,2514.4,2513.8,9.29479899]
[1727806075462,0.04699635,2514.0,2513.8,7.95594]
[1727806075675,3.97732,2514.3,2513.8,7.9559]
[1727806075877,0.04670308,2513.9,2513.8,6.97795]
[1727806076024,3.97732,2514.3,2513.9,3.97781]
[1727806076473,20.2852,2514.4,2513.9,3.97781]
[1727806076474,24.26231,2514.4,2513.9,3.97781]
[1727806076668,24.26231,2514.4,2514.0,3.97771]
[1727806077130,3.97732,2514.3,2513.9,3.97785]
[1727806077529,24.26231,2514.4,2514.0,3.97771]
[1727806077728,3.97735,2514.3,2513.8,6.97791]
[1727806077984,26.688541,2514.4,2513.5,3.0]
[1727806077985,0.8045,2514.1,2513.5,3.0]
[1727806078163,3.97777,2514.0,2513.2,3.97897]
[1727806078470,0.7749,2513.7,2513.3,3.97882]
[1727806078845,0.7749,2513.7,2513.2,4.62950899]
[1727806079055,0.7749,2513.7,2513.3,3.97874]
[1727806079247,4.75311,2513.7,2513.2,4.62950899]
[1727806079461,0.7749,2513.7,2513.3,3.97882]
[1727806079692,0.7749,2513.7,2513.3,3.97881]
[1727806079896,0.7749,2513.7,2513.5,3.97843]
[1727806080077,0.7614,2513.9,2513.5,3.97843]
[1727806080262,0.7614,2513.9,2513.6,3.97825]
[1727806080591,0.7614,2513.9,2513.7,3.97812]
[1727806080797,21.956231,2514.4,2513.8,4.62950899]
[1727806080798,0.8041,2514.2,2513.8,4.62950899]
[1727806080942,0.8041,2514.2,2513.8,8.60752899]
[1727806081143,0.8041,2514.2,2513.8,3.97802]
[1727806081565,0.8041,2514.2,2513.8,3.97795]
[1727806081889,3.97766,2514.1,2513.6,3.0]
[1727806082093,3.97766,2514.1,2513.6,3.97834]
[1727806082300,3.97774,2514.0,2513.6,3.97834]
[1727806082601,0.04570084,2514.0,2513.7,3.97817]
[1727806082899,0.04570084,2514.0,2513.4,7.62950899]
[1727806082900,4.7816,2514.2,2513.5,3.97844]
[1727806083059,3.9783,2513.7,2513.2,3.97894]
[1727806083425,3.97943,2513.0,2512.5,3.98003]
[1727806083551,3.97943,2513.0,2512.4,1.22790599]
[1727806083552,4.377513,2512.9,2512.4,3.98022]
[1727806083752,4.377513,2512.9,2512.3,3.98029]
[1727806083753,3.97971,2512.8,2512.3,3.98029]
[1727806084106,0.8165,2512.6,2511.7,3.98134]
[1727806084313,0.8165,2512.6,2511.5,1.91520599]
[1727806084314,3.98083,2512.1,2511.5,0.6873]
[1727806084449,0.8165,2512.3,2511.6,4.62950899]
[1727806084643,0.04352913,2512.0,2511.9,3.98102]
[1727806084847,3.97879,2513.4,2512.1,7.96125]
[1727806084848,0.8165,2512.6,2512.1,7.96125]
[1727806085048,0.8165,2512.6,2512.0,4.62950899]
[1727806085248,0.8165,2512.6,2512.1,8.4241509]
[1727806085492,0.8165,2512.6,2512.3,3.98029]
[1727806086951,0.8165,2512.6,2512.1,4.4435709]
[1727806087157,0.8165,2512.6,2512.2,3.98049]
[1727806087355,0.8197,2513.1,2512.4,3.98025]
[1727806087598,5.70449327,2514.2,2512.2,3.98053]
[1727806087599,0.8197,2512.8,2512.2,3.98053]
[1727806087893,0.8197,2512.8,2512.1,0.4629509]
[1727806087894,4.7994,2512.8,2512.1,3.9806]
[1727806088076,5.27934,2512.8,2512.1,7.96123]
[1727806088281,5.27934,2512.8,2512.2,3.98047]
[1727806088282,1.29964,2512.8,2512.2,3.98047]
[1727806088654,0.04395063,2512.7,2512.2,3.98047]
[1727806089052,0.04395063,2512.7,2512.2,7.9609]
[1727806089298,0.04395063,2512.7,2512.2,3.98043]
[1727806089793,0.7547,2512.3,2511.8,3.98114]
[1727806090138,0.7519,2512.1,2511.7,3.98132]
[1727806090344,0.7519,2512.1,2511.8,3.9812]
[1727806090630,0.04326044,2512.0,2511.6,3.98146]
[1727806090797,0.04326044,2512.0,2511.6,4.40281682]
[1727806091009,0.04326044,2512.0,2511.6,4.40275682]
[1727806091326,0.04326044,2512.0,2511.3,0.6873]
[1727806091525,0.04326044,2512.0,2511.0,0.6873]
[1727806091726,19.57326044,2512.0,2511.0,0.6873]
[1727806092302,19.57326044,2512.0,2511.1,0.07962494]
[1727806092484,19.57326044,2512.0,2511.0,0.6873]
[1727806092722,19.57326044,2512.0,2511.1,0.40980773]
[1727806093180,19.57326044,2512.0,2511.0,0.6873]
[1727806093669,19.57326044,2512.0,2511.1,5.70449327]
[1727806093966,19.57326044,2512.0,2511.2,0.6873]
[1727806094277,19.57326044,2512.0,2511.7,0.6873]
[1727806094564,0.04326044,2512.0,2511.7,0.6873]
[1727806094956,0.7732,2512.4,2511.7,0.6873]
[1727806095618,0.04219326,2512.3,2511.3,0.6873]
[1727806095823,0.04219326,2512.3,2511.4,0.3959236]
[1727806096078,0.7593,2512.2,2511.4,0.3959236]
[1727806096233,0.7593,2512.2,2511.1,0.6873]
[1727806096564,0.7593,2512.0,2511.1,0.6873]
[1727806096866,0.7593,2512.0,2511.2,0.07963011]
[1727806097067,0.7593,2512.0,2511.1,0.6873]
[1727806097231,0.04199014,2511.9,2511.1,0.6873]
[1727806098185,0.04199014,2511.9,2511.2,0.05277613]
[1727806098421,0.04199014,2511.9,2511.1,0.6873]
[1727806098808,0.04199014,2511.9,2511.1,6.39179327]
[1727806099021,0.04199014,2511.9,2511.2,3.63917933]
[1727806099192,0.04199014,2511.9,2511.3,0.6873]
[1727806099516,0.8006,2512.1,2511.3,0.6873]
[1727806099719,0.0416458,2511.8,2511.3,0.6873]
[1727806100103,0.8006,2512.1,2511.3,0.6873]
[1727806100427,0.04178995,2512.0,2511.3,0.6873]
[1727806100884,0.7833,2512.3,2511.4,0.36873]
[1727806101085,19.53,2512.9,2511.5,3.6873]
[1727806101426,0.8307,2512.8,2511.5,3.6873]
[1727806101633,0.87418534,2512.8,2511.5,3.6873]
[1727806102841,0.87418534,2512.8,2511.5,0.6873]
[1727806103641,0.87418534,2512.8,2511.5,3.6873]
[1727806104035,0.87418534,2512.8,2511.5,3.95421063]
[1727806104418,0.7549,2512.7,2511.5,0.6873]
[1727806104918,0.04341121,2512.6,2511.5,0.6873]
[1727806105248,0.04341121,2512.6,2511.6,0.36873]
[1727806107438,0.04341121,2512.6,2511.6,6.07677772]
[1727806107650,0.04341121,2512.6,2511.9,4.63542964]
[1727806107842,0.04341121,2512.6,2512.0,3.0]
[1727806108356,0.04341121,2512.6,2511.7,4.63542964]
[1727806108496,0.04341121,2512.6,2511.8,3.50041596]
[1727806110927,0.04341121,2512.6,2511.8,0.50041596]
[1727806111127,0.04341121,2512.6,2511.6,3.36873]
[1727806111312,4.67884085,2512.6,2511.6,3.36873]
[1727806111957,0.7936,2512.5,2511.6,3.36873]
[1727806112258,0.7936,2512.5,2510.7,0.3986]
[1727806112259,4.63542964,2512.2,2511.2,0.6873]
[1727806112425,4.63542964,2512.2,2510.7,0.3986]
[1727806112426,4.63542964,2512.0,2510.7,4.63542964]
[1727806112627,0.7562,2511.9,2510.8,0.6873]
[1727806112849,0.832,2511.8,2510.9,0.53227296]
[1727806113033,5.50745644,2511.8,2510.9,0.53227296]
[1727806113238,5.50745644,2511.8,2510.8,0.6873]
[1727806113722,0.8720268,2511.8,2510.8,0.6873]
[1727806114262,4.67545644,2511.8,2510.8,0.6873]
[1727806114471,0.7813,2511.7,2510.8,0.6873]
[1727806114678,0.82119547,2511.7,2510.9,4.63542964]
[1727806114835,0.82119547,2511.7,2511.1,4.63542964]
[1727806115168,0.03989547,2511.7,2511.3,5.32272964]
[1727806115553,19.53,2511.9,2511.3,5.32272964]
[1727806115754,0.03925651,2511.6,2511.4,0.53227296]
[1727806116065,0.03918441,2511.5,2511.2,0.6873]
[1727806116269,0.7813,2512.0,2511.2,0.6873]
[1727806116436,0.03924841,2511.4,2511.2,0.6873]
[1727806116620,0.7813,2512.0,2511.2,0.6873]
[1727806116923,0.7813,2512.0,2511.3,0.07962354]
[1727806117319,19.53,2512.7,2511.6,3.0]
[1727806117320,0.796,2512.5,2511.6,3.0]
[1727806117621,0.796,2512.5,2511.8,0.6873]
[1727806117825,0.7658,2513.1,2511.9,3.07960479]
[1727806118032,0.7658,2513.1,2512.0,0.07936824]
[1727806118268,0.7658,2513.1,2512.0,0.94748003]
[1727806118632,0.04148135,2513.0,2512.0,0.94748003]
[1727806118819,0.04148135,2513.0,2512.1,0.07960235]
[1727806119767,0.04148135,2513.0,2512.1,0.07959538]
[1727806119975,0.04148135,2513.0,2512.2,3.6873]
[1727806120272,0.04148135,2513.0,2512.2,0.6873]
[1727806120824,0.04148135,2513.0,2512.3,3.0]
[1727806121021,19.53,2513.9,2512.4,0.93954321]
[1727806121022,0.8307,2513.8,2512.4,0.93954321]
[1727806121224,0.04126394,2512.9,2512.4,0.93954321]
[1727806121438,0.7664,2513.2,2512.4,0.93954321]
[1727806121651,0.04128879,2512.8,2512.4,0.93954321]
[1727806121858,0.7664,2513.2,2512.4,0.93954321]
[1727806122028,0.04118773,2512.7,2512.4,0.93954321]
[1727806122227,0.7664,2513.2,2512.4,0.93954321]
[1727806122423,0.7664,2513.2,2512.5,6.10208641]
[1727806122424,0.04111573,2512.6,2512.5,6.10208641]
[1727806122645,0.7664,2513.2,2512.6,3.0]
[1727806122939,0.7664,2513.2,2512.5,0.39395432]
[1727806123164,0.04157193,2513.1,2512.5,0.39395432]
[1727806123467,0.04157193,2513.1,2512.2,0.6873]
[1727806123675,0.7813,2513.0,2511.7,0.6873]
[1727806123880,0.82269635,2513.0,2511.9,5.70813209]
[1727806124101,0.82269635,2513.0,2512.0,0.6873]
[1727806124305,0.82269635,2513.0,2512.5,3.98]
[1727806124475,0.82269635,2513.0,2512.7,3.97976]
[1727806124890,0.82269635,2513.0,2512.5,3.98002]
[1727806125064,0.82269635,2513.0,2512.5,3.97999]
[1727806125065,4.02080635,2513.0,2512.5,3.97999]
[1727806125264,0.8008,2512.8,2512.5,3.97999]
[1727806125515,0.8008,2512.8,2512.3,7.96057]
[1727806125663,0.04195481,2512.7,2512.4,3.98023]
[1727806125860,0.8008,2512.8,2512.5,3.98005]
[1727806126165,0.04189962,2512.6,2512.5,3.98005]
[1727806126362,0.04181458,2512.6,2512.5,3.98005]
[1727806126758,0.8008,2512.8,2512.3,3.9804]
[1727806126961,0.04181458,2512.6,2512.4,0.39804]
[1727806127201,0.04188656,2512.7,2512.6,3.97994]
[1727806127368,0.8008,2512.8,2512.7,3.97978]
[1727806127772,0.8008,2512.8,2512.6,3.97994]
[1727806128407,0.8008,2512.8,2512.6,3.97983]
[1727806129501,5.258564,2512.8,2512.2,3.98046]
[1727806129702,5.258564,2512.8,2512.4,3.98025]
[1727806130009,3.9782,2513.7,2511.6,3.98152]
[1727806130010,0.7556,2513.5,2512.8,3.97962]
[1727806130242,0.7556,2513.5,2513.4,3.97867]
[1727806130365,0.8294,2513.9,2513.8,3.97804]
[1727806130712,19.53,2514.2,2513.9,3.97775]
[1727806130925,0.8142,2514.1,2514.0,3.97772]
[1727806131065,0.8142,2514.1,2513.9,3.97786]
[1727806131904,0.8142,2514.1,2513.9,3.9778]
[1727806132263,0.8142,2514.1,2514.0,3.97772]
[1727806132497,0.8142,2514.1,2513.9,3.9778]
[1727806133504,0.8142,2514.1,2513.9,3.97774]
[1727806133801,0.03639267,2514.0,2513.9,7.95552]
[1727806134312,0.03639267,2514.0,2513.9,3.97774]
[1727806136254,0.03639267,2514.0,2513.2,0.6873]
[1727806136421,0.03639267,2514.0,2513.8,3.97801]
[1727806136747,0.03639267,2514.0,2513.6,3.97825]
[1727806136905,0.03639267,2514.0,2513.7,3.97819]
[1727806137109,0.03639267,2514.0,2513.6,3.97825]
[1727806137308,0.03639267,2514.0,2513.5,3.0]
[1727806137507,2.47221894,2514.0,2513.5,6.97839]
[1727806137704,6.44994894,2514.0,2513.5,3.97839]
[1727806138136,2.47221894,2514.0,2513.6,3.97835]
[1727806138344,0.03639267,2514.0,2513.6,3.97835]
[1727806138547,0.03639267,2514.0,2513.8,3.97802]
[1727806138717,0.03639267,2514.0,2513.9,3.97788]
[1727806138912,0.03639267,2514.0,2513.9,7.0027988]
[1727806139119,0.7547,2514.5,2514.3,3.97715]
[1727806139537,0.7547,2514.5,2514.3,7.9543]
[1727806139736,0.7547,2514.5,2514.3,3.97715]
[1727806139945,0.7547,2514.5,2514.4,3.97709]
[1727806140612,0.7547,2514.5,2514.3,7.95429]
[1727806140968,0.7547,2514.5,2514.4,3.97709]
[1727806141623,0.7547,2514.5,2513.9,3.97787]
[1727806141814,0.8097,2514.1,2513.3,0.6392531]
[1727806142010,0.478718,2514.0,2513.6,3.97819]
[1727806142216,0.8097,2514.1,2513.6,3.97819]
[1727806142876,0.8097,2514.1,2513.7,3.97809]
[1727806143258,0.8097,2514.1,2513.3,3.0]
[1727806143500,0.8097,2514.1,2513.0,0.2705664]
[1727806143501,0.8208,2513.7,2513.2,3.97885]
[1727806143984,0.8208,2513.7,2512.9,0.6873]
[1727806143985,0.8208,2513.7,2513.5,3.97851]
[1727806144186,0.8208,2513.7,2513.4,3.97866]
[1727806144387,0.8208,2513.7,2513.4,7.95725]
[1727806145070,19.53,2514.0,2513.6,3.97835]
[1727806145272,19.53,2514.0,2513.4,0.795725]
[1727806145273,0.7806,2514.3,2513.4,6.39253102]
[1727806145496,0.7806,2514.3,2514.2,3.9774]
[1727806146000,0.7806,2514.3,2514.0,3.9776]
[1727806146189,0.7806,2514.3,2514.2,3.9774]
[1727806146394,0.7806,2514.3,2514.1,3.97756]
[1727806146615,0.7806,2514.3,2514.1,3.97747]
[1727806146801,0.7654,2514.6,2514.3,3.97716]
[1727806147777,0.7654,2514.6,2514.3,7.95433]
[1727806148075,3.192586,2514.6,2514.1,3.97745]
[1727806148475,3.192586,2514.6,2513.5,3.6873]
[1727806148476,3.97733,2514.3,2513.5,3.6873]
[1727806148782,0.7788,2514.2,2513.7,3.97807]
[1727806148979,0.7788,2514.2,2513.6,3.0]
[1727806148980,20.2965,2514.5,2514.1,3.97756]
[1727806149576,20.2965,2514.5,2513.6,6.97827]
[1727806149577,20.2965,2514.5,2514.2,3.97727]
[1727806149809,20.2965,2514.5,2514.1,3.97755]
[1727806150117,20.2965,2514.5,2514.2,3.9774]
[1727806150526,0.7665,2514.8,2514.2,3.97736]
[1727806150824,0.7665,2514.8,2514.4,3.97698]
[1727806151489,0.7665,2514.8,2514.4,7.95399]
[1727806151722,0.7525,2515.1,2514.6,3.97664]
[1727806151931,0.7525,2515.1,2514.9,3.97615]
[1727806152134,0.7525,2515.5,2514.9,0.88272234]
[1727806152424,0.7525,2515.5,2515.1,3.97589]
[1727806152595,0.7525,2515.5,2515.1,3.97597]
[1727806153025,0.7525,2515.5,2515.3,3.97566]
[1727806153241,0.7525,2515.5,2515.1,3.97592]
[1727806153740,0.7525,2515.5,2514.9,3.97618]
[1727806153741,4.72794,2515.5,2514.9,3.97618]
[1727806153894,3.97553,2515.4,2514.9,3.97618]
[1727806154107,3.97553,2515.4,2514.8,3.0]
[1727806154108,3.97567,2515.3,2514.8,3.0]
[1727806154304,0.870347,2515.4,2514.9,3.97621]
[1727806154534,0.7645,2515.9,2515.1,0.6873]
[1727806154719,0.7645,2515.9,2515.6,3.97508]
[1727806154929,0.7645,2515.9,2515.6,7.95017]
[1727806155134,0.7645,2515.9,2515.6,7.95018]
[1727806155351,0.7645,2515.9,2515.6,3.97508]
[1727806155749,0.7645,2515.9,2515.4,7.95078]
[1727806155955,0.7645,2515.9,2515.5,3.97528]
[1727806156306,1.238408,2515.9,2515.2,3.97573]
[1727806156517,0.7645,2515.9,2515.3,3.0]
[1727806156842,0.7645,2515.9,2515.4,3.97543]
[1727806157037,0.7645,2515.9,2515.4,3.97537]
[1727806157354,0.7645,2515.9,2515.7,3.97493]
[1727806157557,19.53,2516.3,2515.9,3.97469]
[1727806157558,0.7831,2516.3,2515.9,3.97469]
[1727806157758,4.75721,2516.3,2515.8,3.97487]
[1727806158067,0.7831,2516.3,2515.8,3.97479]
[1727806158363,7.38,2517.6,2515.5,3.0]
[1727806158364,0.7831,2517.3,2516.8,3.97318]
[1727806158526,0.7708,2517.8,2517.0,9.67820102]
[1727806158853,0.7708,2517.8,2517.1,3.97276]
[1727806159057,0.7708,2517.8,2517.0,9.67820102]
[1727806159214,0.7708,2517.8,2517.1,3.9728]
[1727806159406,0.7708,2517.8,2517.2,3.97264]
[1727806159808,0.7708,2517.8,2517.1,3.97281]
[1727806160052,1.24527997,2517.8,2517.0,3.0]
[1727806160256,1.24527997,2517.8,2516.7,3.97344]
[1727806160257,3.97188,2517.7,2516.8,3.0]
[1727806160439,3.97205,2517.6,2516.8,6.97327]
[1727806160644,0.7761,2517.7,2516.9,3.97312]
[1727806160956,0.7761,2517.7,2516.8,3.0]
[1727806160957,4.74799,2517.7,2516.8,3.0]
[1727806161114,0.522247,2517.6,2516.8,3.0]
[1727806161675,0.522247,2517.6,2516.8,6.97319]
[1727806161885,0.522247,2517.6,2516.8,6.97329]
[1727806161886,4.494287,2517.6,2516.8,6.97329]
[1727806162386,0.7761,2517.7,2517.0,3.97294]
[1727806162674,0.7761,2517.7,2517.1,6.9728]
[1727806163034,0.7761,2517.7,2517.3,3.97245]
[1727806163533,0.7761,2517.7,2517.1,3.9728]
[1727806163961,0.7761,2517.7,2517.3,3.97249]
[1727806164748,0.7761,2517.7,2517.5,3.97218]
[1727806164972,19.53,2517.9,2517.3,6.32162181]
[1727806165137,0.78405968,2518.0,2517.7,3.97173]
[1727806166787,0.78405968,2518.0,2517.5,3.97215]
[1727806166933,0.78405968,2518.0,2517.4,3.0]
[1727806167356,1.25960265,2518.0,2517.4,3.0]
[1727806167561,1.25960265,2518.0,2517.4,6.97234]
[1727806167764,5.23109265,2518.0,2517.3,3.97245]
[1727806167962,1.25960265,2518.0,2517.5,3.97213]
[1727806168337,0.78405968,2518.0,2517.7,3.97186]
[1727806168562,0.78405968,2518.0,2517.8,3.97169]
[1727806169064,0.78405968,2518.0,2517.7,3.97179]
[1727806169641,4.75546968,2518.0,2517.3,3.97245]
[1727806169880,1.25960665,2518.0,2517.4,6.97232]
[1727806170190,5.23105665,2518.0,2517.4,6.97232]
[1727806170473,0.7588,2517.8,2517.1,3.97267]
[1727806170684,0.7588,2517.8,2516.7,3.9734]
[1727806170685,0.7588,2517.8,2517.3,3.97236]
[1727806170840,0.7588,2517.8,2517.5,3.97215]
[1727806171174,0.7588,2517.8,2517.3,3.97236]
[1727806171374,0.7588,2517.8,2517.1,3.97272]
[1727806171586,3.97195,2517.7,2517.1,3.97272]
[1727806171754,7.94396,2517.7,2517.1,3.97272]
[1727806171956,3.18507797,2517.8,2516.8,3.9732]
[1727806172163,3.97235,2517.4,2516.8,3.9732]
[1727806172350,3.97235,2517.4,2516.7,3.97334]
[1727806172351,0.479415,2517.4,2516.7,3.97334]
[1727806172556,0.8218,2517.3,2516.7,3.97334]
[1727806172779,3.97296,2517.1,2516.4,3.97383]
[1727806173078,3.97296,2517.1,2516.7,3.97336]
[1727806173079,19.53,2517.1,2516.7,3.97336]
[1727806173278,19.53,2517.1,2516.8,0.397336]
[1727806173585,19.53,2517.1,2516.5,6.32162181]
[1727806173878,19.53,2517.1,2516.6,3.9736]
[1727806174087,19.53,2517.1,2516.1,6.32162181]
[1727806174288,19.53,2517.1,2516.5,3.97361]
[1727806174503,19.53,2517.1,2516.6,3.97352]
[1727806174785,19.53,2517.1,2516.7,3.97343]
[1727806175375,19.53,2517.1,2516.5,3.0]
[1727806175572,19.53,2517.1,2516.9,3.97305]
[1727806176761,4.79432,2517.3,2516.8,3.0]
[1727806177004,4.79432,2517.3,2516.9,3.97303]
[1727806177005,0.8218,2517.3,2516.9,3.97303]
[1727806177307,19.53,2517.7,2517.2,3.97256]
[1727806177308,20.338,2517.7,2517.2,3.97256]
[1727806177508,19.53,2517.9,2517.5,3.9721]
[1727806177657,19.53,2517.9,2517.6,4.36914]
[1727806177992,0.81735968,2518.0,2517.7,3.97186]
[1727806178184,0.81735968,2518.0,2517.7,3.97179]
[1727806178504,0.00255968,2518.0,2517.9,6.97156]
[1727806178653,0.00255968,2518.0,2517.9,8.69803418]
[1727806179283,0.00255968,2518.0,2517.9,9.38533418]
[1727806180656,0.00255968,2518.0,2517.9,23.50993618]
[1727806181087,0.00255968,2518.0,2517.9,21.17018618]
[1727806181861,0.00255968,2518.0,2517.9,19.06085418]
[1727806182081,0.00255968,2518.0,2517.9,20.98035618]
[1727806182871,0.00255968,2518.0,2517.9,13.98173418]
[1727806183566,0.00255968,2518.0,2517.9,27.02315018]
[1727806183779,0.00255968,2518.0,2517.9,27.57315018]
[1727806183971,0.00255968,2518.0,2517.9,33.82276298]
[1727806184504,0.00255968,2518.0,2517.9,64.30107998]
[1727806184701,0.00255968,2518.0,2517.9,62.86319488]
[1727806186787,0.00255968,2518.0,2517.9,62.51609188]
[1727806187559,0.00255968,2518.0,2517.9,53.68944188]
[1727806187799,0.00255968,2518.0,2517.9,52.84824288]
[1727806188204,0.00255968,2518.0,2517.9,46.75534088]
[1727806188718,0.00255968,2518.0,2517.9,46.35545988]
[1727806189268,0.00255968,2518.0,2517.9,45.80545988]
[1727806189466,0.00255968,2518.0,2517.9,9.38533418]
[1727806189661,0.00255968,2518.0,2517.9,21.67059788]
[1727806189970,0.00255968,2518.0,2517.9,18.48352988]
[1727806190278,0.9343662,2519.4,2519.3,3.96935]
[1727806190492,0.9343662,2519.4,2519.1,3.96955]
[1727806190810,0.9343662,2519.4,2519.1,3.96952]
[1727806191007,0.9343662,2519.4,2519.2,3.9694]
[1727806191302,0.9343662,2519.4,2519.2,4.763352]
[1727806191512,0.9343662,2519.4,2519.3,3.96935]
[1727806191664,0.9343662,2519.4,2519.2,4.763352]
[1727806192318,0.9343662,2519.4,2518.7,5.6751117]
[1727806192523,0.9343662,2519.4,2518.8,0.07939216]
[1727806192813,0.9343662,2519.4,2519.2,3.96941]
[1727806193905,0.9343662,2519.4,2519.0,3.96971]
[1727806193906,0.9343662,2519.4,2519.1,4.04904399]
[1727806194120,0.9343662,2519.4,2519.0,3.96971]
[1727806194266,0.9343662,2519.4,2519.1,3.96959]
[1727806194682,0.9343662,2519.4,2519.2,3.96949]
[1727806194980,0.9343662,2519.4,2519.2,3.96942]
[1727806195703,0.9343662,2519.4,2519.2,4.7712624]
[1727806195912,0.1233662,2519.4,2519.3,3.96935]
[1727806196807,0.1233662,2519.4,2518.9,3.96986]
[1727806196808,0.793,2519.3,2518.9,3.96986]
[1727806196968,0.793,2519.3,2519.1,3.96959]
[1727806197418,0.1233662,2519.4,2519.3,3.96935]
[1727806198807,0.1233662,2519.4,2519.2,3.9695]
[1727806198983,0.1233662,2519.4,2519.3,3.96935]
[1727806199195,0.1233662,2519.4,2519.2,3.9695]
[1727806199623,0.1233662,2519.4,2519.3,3.96935]
[1727806200331,0.1233662,2519.4,2518.9,0.794005]
[1727806200332,0.1233662,2519.4,2519.2,0.07938523]
[1727806200502,0.1233662,2519.4,2519.2,3.96948]
[1727806200704,0.1233662,2519.4,2519.3,7.366298]
[1727806200911,0.1233662,2519.4,2519.3,4.366298]
[1727806202030,3.96985,2519.0,2518.4,3.97068]
[1727806202228,4.76242,2519.0,2518.6,3.97043]
[1727806202441,0.7926,2519.0,2518.0,2.93280899]
[1727806202605,0.7926,2519.0,2518.5,9.6457017]
[1727806202972,0.7926,2519.3,2518.5,6.3624117]
[1727806203134,0.7926,2519.3,2518.6,3.97033]
[1727806203350,0.7926,2519.3,2518.1,0.6873]
[1727806203494,4.75631,2518.9,2518.4,3.97074]
[1727806203839,4.75631,2518.9,2518.2,3.97096]
[1727806203840,0.7863,2518.9,2518.6,3.97038]
[1727806204025,0.7863,2518.9,2518.1,4.65846]
[1727806204026,3.97031,2518.7,2518.1,0.6873]
[1727806204228,0.7863,2518.9,2518.5,3.9706]
[1727806204394,3.97018,2518.8,2518.1,3.97118]
[1727806204600,3.97069,2518.5,2518.0,3.97136]
[1727806204803,20.402591,2518.9,2517.7,3.97177]
[1727806204804,4.73366,2518.2,2517.7,3.97177]
[1727806204995,4.73366,2518.2,2517.5,3.97208]
[1727806204996,0.7625,2518.2,2517.6,4.05139783]
[1727806205230,19.53,2518.6,2518.1,3.97124]
[1727806205425,0.7933,2518.6,2518.5,3.97061]
[1727806205731,0.8188,2519.1,2518.7,3.9703]
[1727806205939,0.8188,2519.1,2518.8,3.97012]
[1727806206230,0.8188,2519.1,2518.4,3.97066]
[1727806206443,0.8188,2519.1,2518.6,3.97041]
[1727806206637,0.8188,2519.1,2518.4,1.26457717]
[1727806206638,0.8188,2519.1,2518.9,3.9699]
[1727806207403,0.8188,2519.1,2519.0,3.96982]
[1727806207616,0.8188,2519.1,2518.8,3.0]
[1727806208311,0.8188,2519.1,2518.8,6.97013]
[1727806208507,0.8188,2519.1,2518.8,3.0]
[1727806209106,0.8188,2519.1,2518.9,3.96989]
[1727806209547,0.8188,2519.1,2518.8,3.0]
[1727806209903,0.8188,2519.1,2518.7,3.97016]
[1727806210101,0.8188,2519.1,2518.4,3.97069]
[1727806210102,3.96986,2519.0,2518.4,3.97069]
[1727806210341,3.96986,2519.0,2517.7,5.19966599]
[1727806210342,3.97057,2518.6,2518.1,3.97111]
[1727806210542,0.7653,2518.5,2518.1,3.97111]
[1727806210713,0.7653,2518.5,2518.4,3.97077]
[1727806211354,0.7653,2518.5,2518.2,3.97098]
[1727806211513,0.7653,2518.5,2518.3,3.97093]
[1727806211858,0.7653,2518.5,2518.2,4.368078]
[1727806212144,0.7653,2518.5,2518.2,3.97098]
[1727806212313,0.7653,2518.5,2518.1,3.97118]
[1727806212514,0.7653,2518.5,2518.3,3.97085]
[1727806212848,0.7653,2518.5,2518.1,3.97109]
[1727806213207,0.7653,2518.5,2518.2,3.97095]
[1727806213408,0.7653,2518.5,2518.0,3.97125]
[1727806213644,4.73601,2518.5,2518.0,3.97125]
[1727806214008,4.73601,2518.5,2517.9,6.97155]
[1727806214009,3.97079,2518.4,2517.9,6.97155]
[1727806214205,3.97079,2518.4,2517.8,3.9717]
[1727806214206,3.97095,2518.3,2517.8,3.9717]
[1727806214443,3.97095,2518.3,2517.7,3.97187]
[1727806214444,3.97118,2518.2,2517.7,3.97187]
[1727806214659,3.97118,2518.2,2517.0,5.6751117]
[1727806214660,0.7943,2518.0,2517.4,3.97224]
[1727806214842,20.3243,2518.0,2517.4,3.97224]
[1727806215152,24.29571,2518.0,2517.4,7.94444]
[1727806215313,24.29571,2518.0,2517.1,3.97277]